bitfinex-derivatives/quotes_ETHF0:USTF0_20250627
["timestamp","ask_amount","ask_price","bid_price","bid_amount"]
[1751026636453,0.96156648,2452.2,2452.1,3.74990647]
[1751026636651,0.81529,2452.4,2452.3,0.81529]
[1751026636957,0.81533,2452.2,2452.1,4.26525647]
[1751026637154,0.81533,2452.2,2451.2,5.29773693]
[1751026637155,0.8155,2451.7,2451.4,4.02338]
[1751026637355,2.93455647,2451.6,2451.0,1.54084861]
[1751026637560,0.81579,2450.8,2450.7,3.2078]
[1751026637959,0.81589,2450.5,2450.4,6.46645693]
[1751026638148,3.75044647,2450.5,2450.4,6.46645693]
[1751026638353,0.81589,2450.5,2450.4,3.2078]
[1751026638960,3.75044647,2450.5,2450.4,3.2078]
[1751026640456,0.81596,2450.3,2450.2,3.25865693]
[1751026640658,0.81606,2450.0,2449.9,4.08523928]
[1751026641561,0.81609,2449.9,2449.8,7.29303928]
[1751026641762,0.81609,2449.9,2449.8,3.2078]
[1751026642760,0.81608,2450.0,2449.8,3.2078]
[1751026642961,0.6862,2450.4,2449.8,3.2078]
[1751026643156,0.6862,2450.4,2449.9,2.26078]
[1751026643355,0.81599,2450.3,2449.9,2.26078]
[1751026643862,1.50215,2450.4,2450.0,0.81606]
[1751026644058,0.6862,2450.4,2450.0,2.26076]
[1751026644264,0.81591,2450.5,2450.1,0.81601]
[1751026644453,3.2078,2450.6,2450.2,1.4031]
[1751026644654,0.81596,2450.4,2450.2,1.4031]
[1751026645063,0.81596,2450.4,2450.1,4.02382]
[1751026645462,0.81596,2450.4,2450.1,5.42692]
[1751026646462,4.02368,2450.6,2450.3,0.81596]
[1751026646857,0.8159,2450.5,2450.2,0.81598]
[1751026647360,0.8159,2450.5,2450.3,1.4031]
[1751026647560,0.81593,2450.4,2450.3,1.4031]
[1751026647762,0.81592,2450.5,2450.3,1.4031]
[1751026648159,0.81593,2450.4,2450.3,1.4031]
[1751026648862,0.81591,2450.5,2450.3,1.4031]
[1751026649364,12.82234215,2450.7,2450.3,1.4031]
[1751026649554,0.81593,2450.4,2450.3,1.4031]
[1751026649758,0.81591,2450.5,2450.3,2.21904]
[1751026649958,0.81591,2450.5,2450.3,1.4031]
[1751026650465,0.81591,2450.5,2450.3,2.21906]
[1751026650658,0.81593,2450.4,2450.3,1.4031]
[1751026651564,0.81593,2450.4,2450.3,4.63690528]
[1751026651767,0.81591,2450.5,2450.3,5.45286528]
[1751026651966,0.81591,2450.5,2450.3,4.63690528]
[1751026652166,0.81591,2450.5,2450.3,5.45286528]
[1751026652561,0.81593,2450.4,2450.3,5.45286528]
[1751026652761,0.6992,2450.7,2450.4,0.81591]
[1751026652967,0.81586,2450.6,2450.4,0.81591]
[1751026653157,0.6992,2450.7,2450.4,0.81591]
[1751026653161,0.81589,2450.5,2450.4,0.81591]
[1751026653868,0.6992,2450.7,2450.3,2.21904]
[1751026654166,0.81592,2450.5,2450.3,1.4031]
[1751026654371,0.81591,2450.5,2450.3,0.81594]
[1751026654564,0.81591,2450.5,2450.4,0.81593]
[1751026656060,0.81593,2450.4,2450.3,0.81596]
[1751026656567,0.81592,2450.5,2450.3,0.81596]
[1751026656766,0.98184248,2450.4,2450.3,0.81596]
[1751026657665,4.02362,2450.8,2450.6,0.81583]
[1751026657967,0.9814194,2450.7,2450.6,0.81583]
[1751026658467,6.495,2451.2,2450.9,0.81573]
[1751026658468,0.81573,2451.0,2450.9,0.81573]
[1751026658668,0.81571,2451.1,2451.0,0.81573]
[1751026658867,6.495,2451.2,2450.8,3.2078]
[1751026659070,0.81565,2451.3,2451.1,0.81567]
[1751026659271,4.6073,2451.4,2450.8,11.0303]
[1751026659572,0.81568,2451.2,2450.8,11.0303]
[1751026659775,0.81569,2451.1,2451.0,0.81569]
[1751026660165,0.81568,2451.2,2451.0,0.81569]
[1751026660372,0.81569,2451.1,2451.0,0.81569]
[1751026660562,0.81567,2451.2,2451.0,0.81569]
[1751026661870,0.81567,2451.2,2451.0,0.81571]
[1751026663266,0.81569,2451.1,2451.0,0.81571]
[1751026663475,12.27546215,2451.4,2450.9,0.81574]
[1751026663769,0.81575,2451.0,2450.8,11.84607]
[1751026664171,0.81575,2451.0,2450.8,5.35107]
[1751026664363,0.81576,2450.9,2450.8,9.7028]
[1751026664763,0.81576,2450.9,2450.8,3.2078]
[1751026665862,0.81576,2450.9,2450.8,4.02359]
[1751026666266,0.81576,2450.9,2450.8,3.2078]
[1751026667574,0.81596,2450.3,2450.2,9.9018]
[1751026667970,20.16236215,2450.8,2450.2,10.51877]
[1751026668272,0.81596,2450.3,2450.2,9.7028]
[1751026668472,0.81595,2450.4,2450.2,10.51879]
[1751026668861,0.81596,2450.3,2450.2,10.51879]
[1751026669773,20.16236215,2450.8,2450.3,0.81596]
[1751026669973,20.16236215,2450.8,2450.2,9.7028]
[1751026669974,0.81596,2450.3,2450.2,9.7028]
[1751026670472,0.81596,2450.3,2450.2,10.51879]
[1751026670666,0.81594,2450.4,2450.2,9.7028]
[1751026670873,0.81594,2450.4,2450.3,0.81596]
[1751026671279,0.81594,2450.4,2450.2,10.51877]
[1751026672278,0.81596,2450.3,2450.2,10.51877]
[1751026672470,0.81596,2450.3,2450.2,4.02377]
[1751026672870,0.81594,2450.4,2450.2,4.02377]
[1751026674276,0.81596,2450.3,2450.2,4.02377]
[1751026674471,0.81595,2450.4,2450.2,3.2078]
[1751026674672,0.81593,2450.4,2450.3,0.81593]
[1751026674873,0.81591,2450.5,2450.3,0.81593]
[1751026675073,0.81591,2450.5,2450.4,0.81593]
[1751026678884,0.81595,2450.4,2450.3,0.81594]
[1751026679687,0.81595,2450.4,2450.2,3.8761]
[1751026679887,0.81596,2450.3,2450.2,4.69207]
[1751026680281,0.81595,2450.4,2450.3,0.81593]
[1751026681487,0.81591,2450.5,2450.4,0.8159]
[1751026682183,0.7241,2450.8,2450.7,0.81583]
[1751026682382,2.93123857,2451.3,2450.7,6.13903857]
[1751026682383,0.98635687,2451.0,2450.7,6.13903857]
[1751026682690,0.98635687,2450.9,2450.8,0.81579]
[1751026682886,0.8156,2451.4,2451.3,0.81561]
[1751026683190,0.81562,2451.4,2451.2,0.81565]
[1751026683382,0.81562,2451.4,2451.3,0.81563]
[1751026683688,0.81563,2451.3,2451.2,0.81564]
[1751026684588,0.81561,2451.4,2451.3,0.81563]
[1751026684785,0.81561,2451.4,2451.2,0.81564]
[1751026685585,0.81566,2451.2,2451.1,4.02347]
[1751026685782,0.81566,2451.2,2451.1,3.2078]
[1751026686287,0.81566,2451.2,2451.1,4.02349]
[1751026686486,0.81565,2451.3,2451.1,4.02349]
[1751026686886,0.81566,2451.2,2451.1,4.02349]
[1751026687691,0.81566,2451.2,2451.1,3.2078]
[1751026688583,0.81566,2451.2,2451.1,4.02349]
[1751026689195,0.81566,2451.2,2451.1,3.2078]
[1751026690290,0.81572,2451.1,2450.8,34.5978]
[1751026690782,0.81572,2451.1,2451.0,0.81573]
[1751026690978,0.81565,2451.3,2451.1,0.81567]
[1751026691385,0.81559,2451.4,2451.3,0.81562]
[1751026691692,0.81562,2451.4,2451.2,0.81564]
[1751026691986,0.81562,2451.4,2451.3,0.81563]
[1751026692494,1.3691,2451.6,2451.3,0.81563]
[1751026692793,0.81563,2451.3,2451.2,0.9112]
[1751026693995,0.81563,2451.3,2451.2,1.72686]
[1751026694292,0.81563,2451.3,2451.2,0.9112]
[1751026694691,0.81563,2451.3,2451.2,1.72686]
[1751026695091,1.79568742,2451.3,2451.2,1.72686]
[1751026695293,0.98005742,2451.3,2451.2,4.93466]
[1751026695590,1.79568742,2451.3,2451.2,4.93466]
[1751026696094,0.98005742,2451.3,2451.2,4.93466]
[1751026696392,1.79568742,2451.3,2451.2,4.93466]
[1751026696594,0.98005742,2451.3,2451.2,4.93466]
[1751026696784,1.79568742,2451.3,2451.2,4.93466]
[1751026697196,0.98005742,2451.3,2451.2,4.93466]
[1751026697497,1.79568742,2451.3,2451.2,4.119]
[1751026697990,1.79568742,2451.3,2451.2,4.93466]
[1751026698997,0.98005742,2451.3,2451.2,4.93466]
[1751026699997,1.79568742,2451.3,2451.2,4.93466]
[1751026700196,0.98005742,2451.3,2451.2,4.93466]
[1751026700699,1.79568742,2451.3,2451.2,4.93466]
[1751026701698,1.79568742,2451.3,2451.2,4.119]
[1751026702189,1.79568742,2451.3,2451.2,0.199]
[1751026703502,0.81573,2451.0,2450.9,3.2078]
[1751026703692,6.43949938,2451.0,2450.9,3.2078]
[1751026704195,3.7463614,2451.0,2450.9,3.2078]
[1751026704603,5.0974614,2451.0,2450.9,3.2078]
[1751026705102,0.81584,2450.7,2450.6,28.1748]
[1751026705602,0.81584,2450.7,2450.6,28.99066]
[1751026706193,0.81584,2450.7,2450.6,3.2078]
[1751026706404,0.81584,2450.7,2450.6,34.5978]
[1751026707304,0.81584,2450.7,2450.6,35.41366]
[1751026707497,3.7464414,2450.8,2450.6,28.97966]
[1751026707703,0.81577,2450.9,2450.7,0.81583]
[1751026708405,1.424,2451.1,2450.6,28.1638]
[1751026708604,0.81577,2450.9,2450.6,30.1634]
[1751026708902,0.81577,2450.9,2450.7,0.8158]
[1751026709202,0.81577,2450.9,2450.8,0.81579]
[1751026709499,1.79657696,2450.9,2450.8,0.81579]
[1751026709903,0.81579,2450.8,2450.7,0.81581]
[1751026710302,0.81583,2450.7,2450.6,29.64415]
[1751026710498,0.81583,2450.7,2450.6,3.2078]
[1751026710899,1.50593,2450.7,2450.6,3.2078]
[1751026711801,0.6901,2450.7,2450.6,4.02366]
[1751026712410,1.50593,2450.7,2450.6,4.02366]
[1751026713607,0.81582,2450.8,2450.7,0.81583]
[1751026713806,1.79734422,2450.8,2450.7,0.81583]
[1751026714905,0.98152422,2450.8,2450.7,0.81583]
[1751026715405,0.81576,2450.9,2450.8,0.81579]
[1751026715705,1.79722779,2450.9,2450.8,0.81579]
[1751026719416,0.98146779,2450.9,2450.8,0.81579]
[1751026719707,1.79722779,2450.9,2450.8,0.81579]
[1751026721004,0.98146779,2450.9,2450.8,0.81579]
[1751026721211,7.79e-06,2450.9,2450.8,10.1025214]
[1751026721413,0.81553,2451.7,2451.5,0.81556]
[1751026722014,0.81553,2451.7,2451.6,0.81553]
[1751026722317,3.8733,2451.8,2451.7,0.81549]
[1751026722513,1.48641,2452.0,2451.6,3.2078]
[1751026722904,3.6016314,2452.0,2451.6,4.5639]
[1751026723106,0.81549,2451.7,2451.6,4.02332]
[1751026723515,0.81544,2451.9,2451.7,0.81549]
[1751026723814,0.81546,2451.8,2451.7,0.81549]
[1751026725614,3.7460914,2451.8,2451.7,0.81549]
[1751026726308,2.9306314,2451.8,2451.7,0.81549]
[1751026726716,4.4170514,2452.0,2451.8,0.81544]
[1751026727311,0.81546,2451.8,2451.7,0.81547]
[1751026727815,0.81545,2451.9,2451.7,0.81547]
[1751026728817,0.81546,2451.8,2451.6,4.02331]
[1751026729017,0.81549,2451.7,2451.6,3.2078]
[1751026729912,0.81556,2451.5,2451.4,0.6544]
[1751026730113,0.81559,2451.4,2451.3,9.1878]
[1751026730313,3.7462214,2451.4,2451.3,9.1878]
[1751026733212,3.7462214,2451.4,2451.3,3.2078]
[1751026733718,0.81572,2451.1,2451.0,28.1788]
[1751026734416,0.81572,2451.1,2451.0,28.99453]
[1751026734818,3.7463114,2451.2,2451.0,28.99453]
[1751026735420,0.81569,2451.1,2451.0,28.99453]
[1751026736124,0.81569,2451.1,2451.0,4.02353]
[1751026736413,0.81569,2451.1,2451.0,3.2078]
[1751026736607,0.81569,2451.1,2450.8,1.52948]
[1751026736608,0.81576,2450.9,2450.8,1.52948]
[1751026736809,0.81576,2450.9,2450.8,26.48448]
[1751026738121,0.81575,2451.0,2450.9,0.81576]
[1751026738818,0.81576,2450.9,2450.8,26.49247]
[1751026739018,0.81576,2450.9,2450.8,1.52947]
[1751026739318,0.81576,2450.9,2450.8,26.48547]
[1751026739517,0.81574,2451.0,2450.9,0.81575]
[1751026740315,0.81571,2451.1,2451.0,0.81571]
[1751026740722,0.7157,2451.3,2450.9,0.81573]
[1751026740723,0.81574,2451.0,2450.9,0.81573]
[1751026742922,0.81572,2451.1,2451.0,0.81571]
[1751026743118,0.81575,2451.0,2450.9,0.81574]
[1751026745130,0.81571,2451.1,2451.0,0.8157]
[1751026745317,0.81573,2451.0,2450.9,2.20664]
[1751026746921,0.81571,2451.1,2451.0,0.8157]
[1751026747826,0.81573,2451.0,2450.9,2.20664]
[1751026749326,0.81573,2451.0,2450.9,5.41444]
[1751026749727,0.81571,2451.1,2451.0,0.8157]
[1751026750028,0.7157,2451.3,2450.9,4.5987]
[1751026750230,1.79014995,2451.2,2451.1,0.81567]
[1751026750628,0.97447995,2451.2,2451.1,0.81567]
[1751026751229,0.97447995,2451.2,2451.1,28.6753014]
[1751026751424,0.97447995,2451.2,2451.1,30.0803014]
[1751026752333,1.51452,2451.7,2451.6,0.81553]
[1751026752531,2.48900163,2451.7,2451.6,0.81553]
[1751026752932,0.81554,2451.6,2451.5,0.81554]
[1751026753229,1.79002163,2451.6,2451.5,0.81554]
[1751026753429,0.97448163,2451.6,2451.5,0.81554]
[1751026753630,1.79001163,2451.6,2451.5,0.81554]
[1751026753826,1.79001163,2451.6,2451.5,2.22054]
[1751026754639,1.79001163,2451.6,2451.5,0.81554]
[1751026756225,0.97448163,2451.6,2451.5,0.81554]
[1751026757733,0.97448163,2451.6,2451.5,5.0650714]
[1751026757922,0.97448163,2451.6,2451.5,5.7212714]
[1751026758925,0.97448163,2451.6,2451.5,12.1972714]
[1751026759127,0.81545,2451.9,2451.8,0.81546]
[1751026759328,1.79018223,2451.9,2451.8,0.81546]
[1751026759733,0.81549,2451.7,2451.6,2.83401]
[1751026759934,1.79022223,2451.7,2451.6,2.83401]
[1751026760132,0.81548,2451.8,2451.7,0.81549]
[1751026760333,1.78976595,2451.8,2451.7,4.02329]
[1751026760631,1.78976595,2451.8,2451.7,3.2078]
[1751026761833,0.97428595,2451.8,2451.7,4.02329]
[1751026762439,1.78974595,2451.8,2451.7,4.02329]
[1751026764037,1.78974595,2451.8,2451.7,0.81549]
[1751026764433,0.97428595,2451.8,2451.7,3.7461214]
[1751026764731,0.81529,2452.3,2451.8,4.07727]
[1751026764932,0.81529,2452.3,2452.2,0.81531]
[1751026765125,0.81529,2452.3,2452.2,25.79331]
[1751026765330,1.78843502,2452.3,2452.2,25.79331]
[1751026765633,0.97314502,2452.3,2452.2,25.79331]
[1751026766432,0.97314502,2452.3,2452.2,32.22731]
[1751026766743,0.81525,2452.5,2452.4,0.81526]
[1751026766937,3.7458414,2452.6,2452.4,0.81526]
[1751026767139,3.7458414,2452.6,2452.5,0.81523]
[1751026767335,4.71720843,2452.6,2452.5,0.81523]
[1751026767635,4.71720843,2452.6,2452.4,0.81524]
[1751026767834,1.49143,2452.5,2452.4,0.81524]
[1751026768433,0.6762,2452.5,2452.4,25.77724]
[1751026768633,0.6762,2452.5,2452.4,0.81524]
[1751026768932,1.49143,2452.5,2452.4,24.96]
[1751026770332,0.81528,2452.4,2452.2,0.81531]
[1751026770541,0.81528,2452.4,2452.1,6.1384314]
[1751026770542,3.7458914,2452.4,2452.3,24.958]
[1751026770839,5.8105914,2452.4,2452.3,24.958]
[1751026771328,0.81533,2452.2,2452.1,3.2078]
[1751026771536,3.7459614,2452.2,2452.1,3.2078]
[1751026773324,0.81543,2451.9,2451.8,9.6408]
[1751026773539,0.81543,2451.9,2451.8,3.2078]
[1751026773739,0.81543,2451.9,2451.8,28.1598]
[1751026774034,0.81543,2451.9,2451.8,28.97526]
[1751026774336,0.81543,2451.9,2451.8,28.1598]
[1751026774740,0.81543,2451.9,2451.8,28.97526]
[1751026775436,0.81543,2451.9,2451.8,3.2078]
[1751026775943,2.90103,2451.9,2451.8,3.2078]
[1751026776629,1.54083,2451.9,2451.8,3.2078]
[1751026777335,1.54083,2451.9,2451.8,4.02326]
[1751026778641,1.54083,2451.9,2451.8,3.2078]
[1751026778831,1.54083,2451.9,2451.8,4.02326]
[1751026779335,0.6718,2452.1,2451.8,3.2078]
[1751026779638,0.6718,2452.1,2451.9,0.81543]
[1751026779843,0.81539,2452.0,2451.9,1.47013]
[1751026780441,1.48719,2452.1,2452.0,0.81539]
[1751026784040,1.48719,2452.1,2451.9,1.47011]
[1751026784231,0.81539,2452.0,2451.9,1.47011]
[1751026788246,1.48719,2452.1,2452.0,0.81539]
[1751026788442,0.81539,2452.0,2451.9,1.47011]
[1751026791841,0.81538,2452.1,2452.0,0.81537]
[1751026792244,1.79049154,2452.1,2452.0,0.81537]
[1751026794045,0.81539,2452.0,2451.9,2.86141]
[1751026794249,1.79123678,2452.0,2451.9,2.86141]
[1751026794948,0.81543,2451.9,2451.8,3.2078]
[1751026795251,0.81543,2451.9,2451.8,28.0988]
[1751026795450,1.49523,2451.9,2451.8,28.0988]
[1751026795756,1.49523,2451.9,2451.8,3.2078]
[1751026796046,1.49523,2451.9,2451.8,28.0988]
[1751026796849,1.49523,2451.9,2451.8,3.2078]
[1751026797152,1.49523,2451.9,2451.8,4.02326]
[1751026798149,0.6798,2451.9,2451.8,4.02326]
[1751026798346,0.81538,2452.1,2452.0,0.81537]
[1751026798543,0.81536,2452.2,2452.1,0.81535]
[1751026798739,1.79159386,2452.2,2452.1,1.50575]
[1751026800641,0.81542,2452.0,2451.9,0.8154]
[1751026800953,1.79165386,2452.0,2451.9,0.81541]
[1751026801140,0.81543,2451.9,2451.8,4.73964]
[1751026801345,1.79166386,2451.9,2451.8,29.62066]
[1751026801541,0.97623386,2451.9,2451.8,29.62066]
[1751026801952,1.79166386,2451.9,2451.8,4.73966]
[1751026802153,2.50066386,2451.9,2451.8,29.62066]
[1751026802553,1.68523386,2451.9,2451.8,29.62066]
[1751026802852,0.97623386,2451.9,2451.8,32.5512914]
[1751026803047,0.97718054,2451.9,2451.8,33.9258914]
[1751026803252,3.2078,2452.6,2452.3,0.81529]
[1751026803558,0.6998,2452.4,2452.3,0.81529]
[1751026804256,1.51506,2452.4,2452.3,0.81529]
[1751026805452,0.7143,2452.6,2452.5,0.81523]
[1751026805659,2.2293,2452.6,2452.5,0.81523]
[1751026806152,0.81514,2452.8,2452.5,3.2078]
[1751026806458,1.50624,2452.8,2452.7,0.81514]
[1751026806850,0.6911,2452.8,2452.7,0.81514]
[1751026807651,0.81509,2453.0,2452.6,3.6291314]
[1751026807959,0.81511,2452.9,2452.8,0.81511]
[1751026808257,3.2555142,2453.1,2453.0,0.81506]
[1751026808457,3.2555142,2453.3,2453.0,2.9306314]
[1751026808659,3.2555142,2453.3,2453.2,0.815]
[1751026809251,3.2555142,2453.4,2453.3,0.81496]
[1751026809455,3.25767756,2453.6,2453.3,1.3259]
[1751026809657,4.06995445,2453.9,2453.8,0.8148]
[1751026809857,0.81477,2453.9,2453.5,37.4674314]
[1751026810058,0.81477,2453.9,2453.7,0.81482]
[1751026810458,7.00058585,2454.0,2453.5,34.5368]
[1751026810661,0.81483,2453.7,2453.5,4.02268]
[1751026810862,0.81486,2453.7,2453.5,3.2078]
[1751026811059,0.81486,2453.6,2453.5,3.2078]
[1751026811253,0.81486,2453.6,2453.1,3.6291314]
[1751026811254,2.9306314,2453.6,2453.2,3.2078]
[1751026811455,9.31482445,2453.8,2453.2,34.5428]
[1751026811456,0.81496,2453.3,2453.2,34.5428]
[1751026811855,0.81496,2453.3,2453.2,3.2078]
[1751026812162,1.47595,2453.4,2453.2,3.2078]
[1751026812463,0.81496,2453.3,2453.2,3.2078]
[1751026813557,1.50266,2453.3,2453.2,3.2078]
[1751026814063,2.92636,2453.3,2453.2,3.2078]
[1751026814752,0.81496,2453.3,2453.2,3.2078]
[1751026814951,1.47595,2453.4,2453.2,4.0228]
[1751026815157,7.0854,2453.7,2453.3,3.7455914]
[1751026815158,0.81491,2453.5,2453.3,3.7455914]
[1751026815358,0.81488,2453.6,2453.4,0.81493]
[1751026815764,0.93633196,2453.5,2453.4,0.81493]
[1751026816364,3.2078,2453.8,2453.3,4.9277314]
[1751026816562,0.81479,2453.9,2453.6,6.1384314]
[1751026816762,0.81483,2453.7,2453.6,3.2078]
[1751026816964,0.81461,2454.4,2453.6,6.1384314]
[1751026817166,2.9306314,2454.2,2453.8,3.2078]
[1751026817468,0.81474,2454.0,2453.8,4.02258]
[1751026817761,0.93532751,2453.9,2453.8,38.3862114]
[1751026817968,0.93532751,2453.9,2453.8,39.0706114]
[1751026818166,1.75008751,2453.9,2453.8,3.2078]
[1751026818371,1.75008751,2453.9,2453.8,34.6358]
[1751026818570,0.81476,2453.9,2453.8,34.6358]
[1751026819364,1.74908444,2453.9,2453.8,34.6358]
[1751026819564,0.8148,2453.8,2453.7,0.6601]
[1751026819765,1.74912444,2453.8,2453.7,31.442]
[1751026819971,0.8148,2453.8,2453.7,31.442]
[1751026820869,10.46526771,2454.2,2453.5,44.0078]
[1751026821070,0.81486,2453.6,2453.5,50.4308]
[1751026821270,0.81486,2453.6,2453.5,75.4448]
[1751026821574,6.42655771,2453.6,2453.5,3.2078]
[1751026821768,0.81486,2453.6,2453.5,3.2078]
[1751026824075,0.81486,2453.6,2453.5,4.0227]
[1751026824266,0.81485,2453.7,2453.5,4.0227]
[1751026824575,0.7185,2453.9,2453.6,0.81486]
[1751026824576,0.81482,2453.8,2453.6,0.81486]
[1751026824775,0.81483,2453.7,2453.6,1.50386]
[1751026824975,0.81483,2453.7,2453.6,0.689]
[1751026825271,4.07502,2453.8,2453.6,0.689]
[1751026825470,3.2602,2453.8,2453.7,0.81483]
[1751026825671,4.07501,2453.8,2453.6,0.689]
[1751026825874,4.07501,2453.8,2453.6,1.50384]
[1751026826074,4.07501,2453.8,2453.7,0.81483]
[1751026826877,0.81481,2453.8,2453.7,0.81483]
[1751026827277,4.8898,2454.0,2453.6,0.689]
[1751026827278,5.70455,2454.0,2453.9,0.81476]
[1751026827666,4.8898,2454.0,2453.7,0.6746]
[1751026827977,0.81477,2453.9,2453.8,0.81478]
[1751026828173,5.70454,2454.0,2453.9,0.81476]
[1751026829278,0.81477,2453.9,2453.8,0.81477]
[1751026829483,4.68584,2454.0,2453.9,0.81476]
[1751026829779,4.68584,2454.0,2453.9,4.02256]
[1751026830180,3.66714,2454.0,2453.9,4.02256]
[1751026830571,0.81474,2454.0,2453.9,4.02256]
[1751026831080,0.81472,2454.1,2454.0,0.81472]
[1751026831271,0.81473,2454.0,2453.9,4.02255]
[1751026831472,0.81472,2454.1,2454.0,0.81472]
[1751026831980,4.77739,2454.2,2454.1,0.8147]
[1751026832177,3.9627,2454.2,2454.1,0.8147]
[1751026832378,1.53385,2454.3,2454.2,0.81466]
[1751026832576,1.83312,2454.4,2454.3,0.81463]
[1751026832777,0.81463,2454.3,2454.2,0.81464]
[1751026832977,1.83312,2454.4,2454.3,0.81463]
[1751026834079,1.83311,2454.4,2454.3,4.02243]
[1751026834381,1.0185,2454.4,2454.3,4.02243]
[1751026835779,0.81457,2454.5,2454.4,0.8146]
[1751026836177,7.8125,2454.6,2454.5,0.81456]
[1751026836574,6.7941,2454.6,2454.5,0.81456]
[1751026836779,6.1108,2454.6,2454.5,0.81456]
[1751026837077,3.2591,2454.6,2454.5,0.81456]
[1751026837282,0.81447,2454.8,2454.7,0.8145]
[1751026837484,1.74772013,2454.8,2454.7,0.8145]
[1751026837676,0.81447,2454.8,2454.7,0.8145]
[1751026838074,3.8829,2454.9,2454.6,0.8145]
[1751026838375,0.81448,2454.8,2454.7,0.81449]
[1751026839287,3.2078,2454.9,2454.8,0.81446]
[1751026839580,0.81446,2454.8,2454.7,9.7178]
[1751026839785,1.49516,2454.8,2454.7,9.7178]
[1751026840784,1.49516,2454.8,2454.7,3.2078]
[1751026840981,0.81455,2454.6,2454.4,44.6804]
[1751026841185,0.81455,2454.6,2454.5,6.51]
[1751026841390,0.81452,2454.7,2454.5,7.32456]
[1751026841689,1.49519,2454.8,2454.7,0.8145]
[1751026842187,0.8145,2454.7,2454.6,0.81451]
[1751026842385,1.49519,2454.8,2454.6,0.81451]
[1751026842978,1.49519,2454.8,2454.7,0.8145]
[1751026843186,0.81449,2454.8,2454.7,0.8145]
[1751026843794,0.6825,2454.9,2454.6,0.81451]
[1751026843986,0.81447,2454.8,2454.7,0.81449]
[1751026844486,0.6825,2454.9,2454.8,0.81446]
[1751026845396,11.3531,2455.0,2454.9,0.81443]
[1751026846298,12.1675,2455.0,2454.9,0.81443]
[1751026847096,8.1453,2455.0,2454.9,32.36543]
[1751026847294,8.1453,2455.0,2454.8,1.52614]
[1751026847489,8.1453,2455.0,2454.7,35.6503]
[1751026847796,1.48525,2454.9,2454.7,35.6503]
[1751026847997,0.6708,2454.9,2454.8,0.81446]
[1751026848385,8.1453,2455.0,2454.9,0.81443]
[1751026848793,8.1453,2455.0,2454.9,3.64763]
[1751026849196,8.1453,2455.0,2454.9,6.56888276]
[1751026851294,8.1453,2455.0,2454.9,11.56888276]
[1751026851795,2.29687954,2455.0,2454.9,14.49013552]
[1751026851999,3.2078,2456.0,2455.9,0.8141]
[1751026852205,4.14240156,2456.0,2455.9,0.8141]
[1751026852904,0.93460156,2456.0,2455.9,4.0219]
[1751026853202,3.2399163,2456.8,2456.3,0.81397]
[1751026853406,5.67928449,2457.3,2456.7,2.81075547]
[1751026853407,2.92125276,2457.2,2456.7,2.81075547]
[1751026853589,2.92125276,2456.8,2456.7,2.81075547]
[1751026853791,0.93387601,2456.8,2456.7,3.62458547]
[1751026854195,0.81379,2456.9,2456.7,2.81075547]
[1751026854394,2.135,2456.8,2456.7,2.81075547]
[1751026854599,1.3212,2456.8,2456.7,2.81075547]
[1751026855492,2.0877,2457.0,2456.7,2.81075547]
[1751026855493,2.2418,2457.0,2456.7,2.81075547]
[1751026855692,2.2418,2457.0,2456.9,0.81377]
[1751026855902,2.2418,2457.0,2456.9,26.27377]
[1751026856097,2.2418,2457.0,2456.9,33.31837]
[1751026856297,3.2558,2457.1,2457.0,0.81374]
[1751026856597,0.7011,2457.8,2457.0,4.5509]
[1751026856796,0.7011,2457.8,2457.5,3.2078]
[1751026856991,0.7011,2457.8,2457.6,0.81354]
[1751026857197,0.7011,2457.8,2457.6,0.81353]
[1751026857394,0.7011,2457.8,2457.5,3.2078]
[1751026857591,0.81354,2457.6,2457.5,28.7068]
[1751026857898,0.81354,2457.6,2457.5,3.2078]
[1751026858100,0.81365,2457.3,2457.2,3.2078]
[1751026858299,0.81365,2457.3,2457.2,28.7078]
[1751026858500,0.81362,2457.4,2457.2,28.7078]
[1751026858699,0.81364,2457.3,2457.2,3.2078]
[1751026859006,2.97644,2457.3,2457.2,3.2078]
[1751026859298,2.1628,2457.3,2457.2,3.2078]
[1751026859494,0.7161,2457.3,2457.2,3.2078]
[1751026859898,10.0093,2457.5,2457.2,3.2078]
[1751026860101,3.2553,2457.5,2457.2,3.2078]
[1751026860404,3.2553,2457.5,2457.4,0.8136]
[1751026860704,3.2553,2457.5,2457.4,26.3106]
[1751026861300,0.81353,2457.7,2457.4,26.3106]
[1751026861501,0.81353,2457.7,2457.5,3.2078]
[1751026861897,0.81352,2457.7,2457.5,3.2078]
[1751026862099,0.81354,2457.6,2457.5,3.2078]
[1751026862403,0.81364,2457.3,2457.2,3.2078]
[1751026865802,0.81383,2456.8,2456.6,7.56686]
[1751026866005,0.8139,2456.5,2456.4,3.2078]
[1751026866508,0.81388,2456.6,2456.4,4.02171]
[1751026866803,0.81386,2456.7,2456.5,0.8139]
[1751026867009,3.2078,2456.9,2456.4,3.2078]
[1751026867213,0.81389,2456.6,2456.4,4.02173]
[1751026867705,1.3442,2456.8,2456.4,3.2078]
[1751026867900,0.8139,2456.5,2456.4,3.2078]
[1751026868208,10.83654546,2456.6,2456.1,44.0078]
[1751026868410,0.81398,2456.3,2456.1,3.2078]
[1751026868602,0.81398,2456.3,2456.1,4.02182]
[1751026868802,0.814,2456.2,2456.1,4.02182]
[1751026868998,0.81399,2456.3,2456.1,3.2078]
[1751026869304,0.6711,2456.4,2456.1,3.2078]
[1751026869802,0.6711,2456.4,2456.1,4.02181]
[1751026869803,0.81397,2456.3,2456.1,4.02181]
[1751026870003,1.52101,2456.5,2456.3,0.81397]